[Event "Open Nuevo Centro. Jornada 2"]
[Site "Chess.com"]
[Date "2020.06.26"]
[Round "8"]
[White "Lloret Ramis, Juan José"]
[Black "Pallardo Lozoya, Jose Vicente"]
[Result "1/2-1/2"]
[WhiteElo "1988"]
[BlackElo "2170"]
[TimeControl "180+2"]
[EndTime "12:00:03 PDT"]
[Termination "Tablas por repeticiÃ³n de movimientos"]

1. c4 {[%clk 0:02:58.5]} 1... e5 {[%clk 0:03:00.4]} 2. Nc3 {[%clk 0:02:47.9]}
2... Nc6 {[%clk 0:03:00.2]} 3. Nf3 {[%clk 0:02:47.1]} 3... g6 {[%clk 0:03:01.5]}
4. d4 {[%clk 0:02:43.4]} 4... d6 {[%clk 0:02:59.3]} 5. dxe5 {[%clk 0:02:42.8]}
5... Nxe5 {[%clk 0:03:00.5]} 6. Nxe5 {[%clk 0:02:43]} 6... dxe5 {[%clk
0:03:02.4]} 7. Qxd8+ {[%clk 0:02:43.8]} 7... Kxd8 {[%clk 0:03:04.3]} 8. b3
{[%clk 0:02:27.9]} 8... c6 {[%clk 0:03:04.1]} 9. e3 {[%clk 0:02:25.5]} 9... Bf5
{[%clk 0:02:53]} 10. Be2 {[%clk 0:02:21.6]} 10... Kc7 {[%clk 0:02:53.5]} 11. Bb2
{[%clk 0:02:17.9]} 11... f6 {[%clk 0:02:46]} 12. g4 {[%clk 0:02:03.2]} 12... Be6
{[%clk 0:02:45.7]} 13. O-O-O {[%clk 0:01:56.7]} 13... Nh6 {[%clk 0:02:43.4]} 14.
h3 {[%clk 0:01:40.1]} 14... Nf7 {[%clk 0:02:43.9]} 15. Ne4 {[%clk 0:01:30.4]}
15... Be7 {[%clk 0:02:42.5]} 16. f4 {[%clk 0:01:17.2]} 16... Rhe8 {[%clk
0:02:24.6]} 17. g5 {[%clk 0:01:09.2]} 17... fxg5 {[%clk 0:02:21.6]} 18. fxg5
{[%clk 0:01:05]} 18... Bf5 {[%clk 0:02:19.8]} 19. Nf6 {[%clk 0:01:02.1]} 19...
Bxf6 {[%clk 0:02:20]} 20. gxf6 {[%clk 0:01:03.4]} 20... h5 {[%clk 0:01:56.6]}
21. c5 {[%clk 0:01:03.7]} 21... Re6 {[%clk 0:01:50.8]} 22. Bc4 {[%clk
0:01:03.1]} 22... Rxf6 {[%clk 0:01:51.5]} 23. Bxf7 {[%clk 0:01:03]} 23... Rxf7
{[%clk 0:01:53.4]} 24. Bxe5+ {[%clk 0:01:04.1]} 24... Kc8 {[%clk 0:01:54.7]} 25.
h4 {[%clk 0:01:03.2]} 25... Re7 {[%clk 0:01:34.5]} 26. Bf4 {[%clk 0:01:03.6]}
26... Rd7 {[%clk 0:01:21.5]} 27. Rxd7 {[%clk 0:00:59.9]} 27... Kxd7 {[%clk
0:01:23.4]} 28. Rd1+ {[%clk 0:01:00.9]} 28... Ke7 {[%clk 0:01:23]} 29. Bg5+
{[%clk 0:01:00.1]} 29... Kf7 {[%clk 0:01:17.4]} 30. Rd8 {[%clk 0:00:29.8]} 30...
Rxd8 {[%clk 0:01:14.4]} 31. Bxd8 {[%clk 0:00:31.1]} 31... Ke6 {[%clk 0:01:15.6]}
32. Kd2 {[%clk 0:00:30.9]} 32... Kd5 {[%clk 0:01:16.9]} 33. Be7 {[%clk 0:00:32]}
33... Ke4 {[%clk 0:01:16.1]} 34. Bg5 {[%clk 0:00:31.9]} 34... Be6 {[%clk
0:01:16]} 35. Kc3 {[%clk 0:00:29.8]} 35... Bd5 {[%clk 0:01:00.9]} 36. a3 {[%clk
0:00:28.6]} 36... Be6 {[%clk 0:01:01.3]} 37. b4 {[%clk 0:00:29.4]} 37... Bh3
{[%clk 0:01:01.4]} 38. Bf4 {[%clk 0:00:29.2]} 38... Bg4 {[%clk 0:01:02]} 39. Bg5
{[%clk 0:00:30.3]} 39... Bd1 {[%clk 0:01:02.6]} 40. Bf4 {[%clk 0:00:31.1]} 40...
Ba4 {[%clk 0:01:02.7]} 41. Bg5 {[%clk 0:00:31.8]} 41... b6 {[%clk 0:00:56.7]}
42. cxb6 {[%clk 0:00:25.7]} 42... axb6 {[%clk 0:00:58.6]} 43. Bd8 {[%clk
0:00:23.8]} 43... b5 {[%clk 0:00:47.8]} 44. Bg5 {[%clk 0:00:23.2]} 44... Bd1
{[%clk 0:00:48.5]} 45. Bf4 {[%clk 0:00:23.2]} 45... Bg4 {[%clk 0:00:49.1]} 46.
Bg5 {[%clk 0:00:24.2]} 46... Bf5 {[%clk 0:00:48.8]} 47. Bf4 {[%clk 0:00:25.3]}
47... Kd5 {[%clk 0:00:49.9]} 48. Bg5 {[%clk 0:00:25.9]} 48... Be4 {[%clk
0:00:50.4]} 49. Bf4 {[%clk 0:00:26.9]} 49... c5 {[%clk 0:00:51.6]} 50. bxc5
{[%clk 0:00:27.2]} 50... Kxc5 {[%clk 0:00:53.5]} 51. Bg5 {[%clk 0:00:27.9]}
51... Bf3 {[%clk 0:00:51.9]} 52. Bf4 {[%clk 0:00:29]} 52... Bd1 {[%clk
0:00:52.9]} 53. Bg5 {[%clk 0:00:29.9]} 53... Kd5 {[%clk 0:00:52.8]} 54. Bf4
{[%clk 0:00:31]} 54... Ke4 {[%clk 0:00:53.4]} 55. Bg5 {[%clk 0:00:32]} 55... Kf5
{[%clk 0:00:51.1]} 56. Bf4 {[%clk 0:00:32.5]} 56... Bf3 {[%clk 0:00:51.2]} 57.
Bg5 {[%clk 0:00:33.3]} 57... Kg4 {[%clk 0:00:52]} 58. Kb4 {[%clk 0:00:33.1]}
58... Be2 {[%clk 0:00:48.7]} 59. a4 {[%clk 0:00:33.7]} 59... bxa4 {[%clk
0:00:49.1]} 60. Kxa4 {[%clk 0:00:35.2]} 60... Kf5 {[%clk 0:00:47.2]} 61. Kb4
{[%clk 0:00:36.5]} 61... Ke4 {[%clk 0:00:49.1]} 62. Kc3 {[%clk 0:00:37.6]} 62...
Bg4 {[%clk 0:00:50.6]} 63. Bf4 {[%clk 0:00:38.6]} 63... Bd7 {[%clk 0:00:52.1]}
64. Bg5 {[%clk 0:00:39.6]} 64... Bf5 {[%clk 0:00:54]} 65. Bf4 {[%clk 0:00:40.8]}
65... Bd7 {[%clk 0:00:55.9]} 66. Bg5 {[%clk 0:00:41.9]} 66... Bf5 {[%clk
0:00:57.8]} 67. Bf4 {[%clk 0:00:43.2]} 67... Bd7 {[%clk 0:00:59.7]} 1/2-1

[Event "Open Nuevo Centro. Jornada 2"]
[Site "Chess.com"]
[Date "2020.06.26"]
[Round "8"]
[White "Kovacevic, Slobodan"]
[Black "Gimeno Higueras, Roberto"]
[Result "0-1"]
[WhiteElo "2101"]
[BlackElo "2009"]
[TimeControl "180+2"]
[EndTime "12:00:17 PDT"]
[Termination "Victoria de Chicogrande2 por tiempo"]

1. d4 {[%clk 0:03:01.9]} 1... Nf6 {[%clk 0:03:00.3]} 2. Nf3 {[%clk 0:03:00.8]}
2... e6 {[%clk 0:03:00.9]} 3. Bf4 {[%clk 0:02:59.8]} 3... b6 {[%clk 0:03:01.5]}
4. Nbd2 {[%clk 0:02:58.3]} 4... Bb7 {[%clk 0:03:02.5]} 5. e3 {[%clk 0:02:57.9]}
5... Be7 {[%clk 0:03:02.3]} 6. h3 {[%clk 0:02:55.7]} 6... O-O {[%clk 0:03:00.6]}
7. Bd3 {[%clk 0:02:54.3]} 7... d6 {[%clk 0:03:00.3]} 8. c3 {[%clk 0:02:53.7]}
8... Nbd7 {[%clk 0:03:01.2]} 9. Qe2 {[%clk 0:02:52.3]} 9... Re8 {[%clk
0:03:00.7]} 10. O-O {[%clk 0:02:49.4]} 10... Bf8 {[%clk 0:03:00.7]} 11. Bh2
{[%clk 0:02:48]} 11... e5 {[%clk 0:03:00.2]} 12. dxe5 {[%clk 0:02:46.5]} 12...
Nxe5 {[%clk 0:03:00.8]} 13. Nxe5 {[%clk 0:02:44.1]} 13... dxe5 {[%clk
0:03:01.9]} 14. Rfd1 {[%clk 0:02:41.9]} 14... Qd5 {[%clk 0:02:47.6]} 15. e4
{[%clk 0:02:36.1]} 15... Qc5 {[%clk 0:02:31.4]} 16. Rac1 {[%clk 0:02:30]} 16...
a5 {[%clk 0:02:26.5]} 17. a4 {[%clk 0:02:23.3]} 17... Rad8 {[%clk 0:02:24.4]}
18. Bb5 {[%clk 0:02:16.8]} 18... Bc6 {[%clk 0:02:06.7]} 19. Nb3 {[%clk 0:02:15]}
19... Bxb5 {[%clk 0:02:05.8]} 20. axb5 {[%clk 0:02:13.2]} 20... Qe7 {[%clk
0:01:55.4]} 21. Nd2 {[%clk 0:02:10.7]} 21... Qc5 {[%clk 0:01:51.2]} 22. b3
{[%clk 0:02:04.3]} 22... g6 {[%clk 0:01:42.5]} 23. c4 {[%clk 0:01:56.8]} 23...
Bh6 {[%clk 0:01:37.8]} 24. Ra1 {[%clk 0:01:51.7]} 24... Qb4 {[%clk 0:01:19]} 25.
Nf3 {[%clk 0:01:46.6]} 25... Qxb3 {[%clk 0:01:02.9]} 26. Rxd8 {[%clk 0:01:44.1]}
26... Rxd8 {[%clk 0:01:02.2]} 27. Bxe5 {[%clk 0:01:42.4]} 27... Bg7 {[%clk
0:00:53.7]} 28. Bxc7 {[%clk 0:01:39.9]} 28... Rc8 {[%clk 0:00:50.3]} 29. Bxb6
{[%clk 0:01:30.5]} 29... Rxc4 {[%clk 0:00:48.9]} 30. e5 {[%clk 0:01:24.9]} 30...
Nd5 {[%clk 0:00:42.8]} 31. Bxa5 {[%clk 0:01:21.2]} 31... Nf4 {[%clk 0:00:38.8]}
32. Qd2 {[%clk 0:01:16.9]} 32... Nxh3+ {[%clk 0:00:32.3]} 33. Kh2 {[%clk
0:01:05.5]} 33... Nf4 {[%clk 0:00:21.5]} 34. b6 {[%clk 0:01:02.8]} 34... Ne6
{[%clk 0:00:18.6]} 35. Qd7 {[%clk 0:00:54.2]} 35... Rf4 {[%clk 0:00:16.4]} 36.
b7 {[%clk 0:00:48.3]} 36... Rxf3 {[%clk 0:00:17.4]} 37. Qc8+ {[%clk 0:00:43.5]}
37... Nf8 {[%clk 0:00:17.4]} 38. b8=Q {[%clk 0:00:36.3]} 38... Qd5 {[%clk
0:00:12.2]} 39. gxf3 {[%clk 0:00:29.5]} 39... Bxe5+ {[%clk 0:00:12.6]} 40. Kg2
{[%clk 0:00:28.1]} 40... Bxb8 {[%clk 0:00:13.3]} 41. Qxb8 {[%clk 0:00:26.5]}
41... Qg5+ {[%clk 0:00:14.3]} 42. Qg3 {[%clk 0:00:20.8]} 42... Qf6 {[%clk
0:00:14.9]} 43. Rc1 {[%clk 0:00:16.2]} 43... h5 {[%clk 0:00:12.7]} 44. Rc8
{[%clk 0:00:14.1]} 44... Qe6 {[%clk 0:00:13.3]} 45. Qb8 {[%clk 0:00:10.8]} 45...
Qe7 {[%clk 0:00:12.9]} 46. Bb4 {[%clk 0:00:09.3]} 46... Qg5+ {[%clk 0:00:13.5]}
47. Kf1 {[%clk 0:00:07.3]} 47... Kh7 {[%clk 0:00:12.1]} 48. Bxf8 {[%clk
0:00:04.6]} 48... h4 {[%clk 0:00:12.9]} 49. Bg7 {[%clk 0:00:02.6]} 49... Kxg7
{[%clk 0:00:13.6]} 0

[Event "Open Nuevo Centro. Jornada 2"]
[Site "Chess.com"]
[Date "2020.06.26"]
[Round "8"]
[White "Amorós Pérez, Manuel David"]
[Black "Yuste Valenzuela, Alejandro"]
[Result "1-0"]
[WhiteElo "1659"]
[BlackElo "1837"]
[TimeControl "180+2"]
[EndTime "12:00:39 PDT"]
[Termination "Victoria de mpad1984 por abandono"]

1. e4 {[%clk 0:03:01.9]} 1... c5 {[%clk 0:03:00.9]} 2. Nf3 {[%clk 0:03:02.6]}
2... d6 {[%clk 0:03:02.1]} 3. d4 {[%clk 0:03:03.8]} 3... cxd4 {[%clk 0:03:04]}
4. Nxd4 {[%clk 0:03:05.1]} 4... Nf6 {[%clk 0:03:05.5]} 5. Nc3 {[%clk 0:03:06.4]}
5... g6 {[%clk 0:03:06.8]} 6. Nf3 {[%clk 0:03:07.9]} 6... Bg7 {[%clk 0:03:07.6]}
7. e5 {[%clk 0:03:09.4]} 7... Ng8 {[%clk 0:02:54.6]} 8. exd6 {[%clk 0:03:07.5]}
8... Qxd6 {[%clk 0:02:52.7]} 9. Qxd6 {[%clk 0:03:07.9]} 9... exd6 {[%clk
0:02:54.6]} 10. Nb5 {[%clk 0:03:08.7]} 10... Kd7 {[%clk 0:02:43.5]} 11. Bf4
{[%clk 0:03:06.4]} 11... Nf6 {[%clk 0:02:27.6]} 12. Rb1 {[%clk 0:03:03.5]} 12...
Re8+ {[%clk 0:02:23.9]} 13. Be2 {[%clk 0:03:00.7]} 13... Nd5 {[%clk 0:02:20.4]}
14. Bg3 {[%clk 0:02:54.3]} 14... Be5 {[%clk 0:02:12.1]} 15. Rd1 {[%clk
0:02:40.4]} 15... Bxg3 {[%clk 0:02:10.6]} 16. hxg3 {[%clk 0:02:38.4]} 16... Nb4
{[%clk 0:01:46.2]} 17. Rxd6+ {[%clk 0:02:29.8]} 17... Ke7 {[%clk 0:01:46.7]} 18.
Rd2 {[%clk 0:02:20.7]} 18... N8a6 {[%clk 0:01:44.8]} 19. a3 {[%clk 0:02:20.7]}
19... Nc6 {[%clk 0:01:43.8]} 20. Rxh7 {[%clk 0:02:02]} 20... Bg4 {[%clk
0:01:26.8]} 21. Kf1 {[%clk 0:01:58.9]} 21... Rad8 {[%clk 0:01:23.7]} 22. Rxd8
{[%clk 0:01:52.6]} 22... Rxd8 {[%clk 0:01:25.6]} 23. Bd3 {[%clk 0:01:46.5]}
23... Bxf3 {[%clk 0:01:20.5]} 24. gxf3 {[%clk 0:01:47.2]} 24... Ne5 {[%clk
0:01:20.9]} 25. Ke2 {[%clk 0:01:32.6]} 25... Nc5 {[%clk 0:01:21]} 26. Be4 {[%clk
0:01:21.4]} 26... Nxe4 {[%clk 0:01:15.7]} 27. fxe4 {[%clk 0:01:22.4]} 27... Nc4
{[%clk 0:01:12.5]} 28. b3 {[%clk 0:01:02.2]} 28... Ne5 {[%clk 0:00:53.9]} 29.
Nc3 {[%clk 0:00:52.8]} 29... Nc6 {[%clk 0:00:52.6]} 30. Nd5+ {[%clk 0:00:52.6]}
30... Ke6 {[%clk 0:00:49.2]} 31. c3 {[%clk 0:00:46.5]} 31... Na5 {[%clk
0:00:37]} 32. b4 {[%clk 0:00:41]} 32... Nc4 {[%clk 0:00:34.3]} 33. a4 {[%clk
0:00:41.9]} 33... Nd6 {[%clk 0:00:31.5]} 34. f3 {[%clk 0:00:40.2]} 34... Nc4
{[%clk 0:00:31.2]} 35. Rh1 {[%clk 0:00:36.4]} 35... f5 {[%clk 0:00:21.4]} 36.
Rd1 {[%clk 0:00:35.4]} 36... fxe4 {[%clk 0:00:21.7]} 37. fxe4 {[%clk 0:00:29.2]}
37... Rf8 {[%clk 0:00:21.6]} 38. Nf4+ {[%clk 0:00:27.7]} 38... Kf7 {[%clk
0:00:20.6]} 39. Rd4 {[%clk 0:00:23.2]} 39... Ne5 {[%clk 0:00:20.2]} 40. Rd5
{[%clk 0:00:22.6]} 40... Kf6 {[%clk 0:00:19.4]} 41. Rd6+ {[%clk 0:00:21.3]}
41... Kf7 {[%clk 0:00:17.6]} 42. Re6 {[%clk 0:00:22.3]} 42... Ng4 {[%clk
0:00:09.9]} 43. Rxg6 {[%clk 0:00:20.9]} 43... Ne5 {[%clk 0:00:11.2]} 44. Re6
{[%clk 0:00:21.6]} 44... Ng4 {[%clk 0:00:12.1]} 45. Rd6 {[%clk 0:00:22.4]} 45...
Rh8 {[%clk 0:00:12.6]} 46. Kf3 {[%clk 0:00:23.3]} 46... Ne5+ {[%clk 0:00:12.2]}
47. Ke3 {[%clk 0:00:23.5]} 47... Rh1 {[%clk 0:00:11.6]} 48. Rd5 {[%clk
0:00:22.6]} 48... Nc4+ {[%clk 0:00:11.2]} 49. Kd4 {[%clk 0:00:23.7]} 49... Nd2
{[%clk 0:00:10.7]} 50. Rd7+ {[%clk 0:00:23.6]} 50... Ke8 {[%clk 0:00:11.2]} 51.
Rxb7 {[%clk 0:00:21.1]} 51... Nb3+ {[%clk 0:00:11.8]} 52. Ke5 {[%clk 0:00:22.3]}
52... Rh6 {[%clk 0:00:09.1]} 53. g4 {[%clk 0:00:22.8]} 53... Nd2 {[%clk
0:00:09.3]} 54. Rc7 {[%clk 0:00:21.5]} 54... Nf3+ {[%clk 0:00:09.4]} 55. Kf5
{[%clk 0:00:21.4]} 55... Nh4+ {[%clk 0:00:08.9]} 56. Kg5 {[%clk 0:00:22.4]} 1

[Event "Open Nuevo Centro. Jornada 2"]
[Site "Chess.com"]
[Date "2020.06.26"]
[Round "8"]
[White "Clement Gómez, José Antonio"]
[Black "Garcia, Jhoel"]
[Result "1-0"]
[WhiteElo "2496"]
[BlackElo "2298"]
[TimeControl "180+2"]
[EndTime "12:01:54 PDT"]
[Termination "Victoria de P4AD por abandono"]

1. c4 {[%clk 0:03:01.9]} 1... e6 {[%clk 0:02:57.2]} 2. g3 {[%clk 0:03:02.7]}
2... Nf6 {[%clk 0:02:58.5]} 3. Bg2 {[%clk 0:03:04.6]} 3... c5 {[%clk 0:02:57.8]}
4. Nf3 {[%clk 0:03:06.5]} 4... b6 {[%clk 0:02:57.2]} 5. O-O {[%clk 0:03:08.4]}
5... Bb7 {[%clk 0:02:58.5]} 6. b3 {[%clk 0:03:09.3]} 6... d6 {[%clk 0:02:59.3]}
7. Bb2 {[%clk 0:03:10.8]} 7... Be7 {[%clk 0:03:00.7]} 8. Nc3 {[%clk 0:03:12.3]}
8... Nbd7 {[%clk 0:03:01.3]} 9. Re1 {[%clk 0:03:13.7]} 9... O-O {[%clk
0:02:59.4]} 10. e4 {[%clk 0:03:15]} 10... a6 {[%clk 0:03:00.3]} 11. d4 {[%clk
0:03:10]} 11... cxd4 {[%clk 0:03:01.6]} 12. Qxd4 {[%clk 0:03:11.4]} 12... Qc7
{[%clk 0:02:55.9]} 13. Rad1 {[%clk 0:03:10.9]} 13... Rfd8 {[%clk 0:02:56.4]} 14.
h3 {[%clk 0:03:11.7]} 14... Rac8 {[%clk 0:02:57.6]} 15. Qe3 {[%clk 0:03:10.4]}
15... Ba8 {[%clk 0:02:46.9]} 16. e5 {[%clk 0:02:52.3]} 16... dxe5 {[%clk
0:02:31.9]} 17. Nxe5 {[%clk 0:02:54.2]} 17... Bxg2 {[%clk 0:02:31.9]} 18. Kxg2
{[%clk 0:02:46.5]} 18... b5 {[%clk 0:02:15.4]} 19. cxb5 {[%clk 0:02:01.1]} 19...
axb5 {[%clk 0:02:14.3]} 20. Kh2 {[%clk 0:01:45.5]} 20... Bc5 {[%clk 0:01:54.1]}
21. Qe2 {[%clk 0:01:07.1]} 21... Bxf2 {[%clk 0:01:34.1]} 22. Nxb5 {[%clk
0:00:51.9]} 22... Qb6 {[%clk 0:00:56.8]} 23. Rf1 {[%clk 0:00:16.9]} 23... Bc5
{[%clk 0:00:28.2]} 24. a4 {[%clk 0:00:15.3]} 24... Nxe5 {[%clk 0:00:23.7]} 25.
Bxe5 {[%clk 0:00:17.2]} 25... Nd5 {[%clk 0:00:22.1]} 26. Bd4 {[%clk 0:00:11.9]}
26... Bxd4 {[%clk 0:00:22.7]} 27. Rxd4 {[%clk 0:00:12.7]} 27... Qc5 {[%clk
0:00:19.4]} 28. Qf2 {[%clk 0:00:12.1]} 28... f6 {[%clk 0:00:18.4]} 29. Rfd1
{[%clk 0:00:12.3]} 29... Qc2 {[%clk 0:00:19.2]} 30. Qxc2 {[%clk 0:00:08.8]}
30... Rxc2+ {[%clk 0:00:19.3]} 31. R1d2 {[%clk 0:00:09.9]} 31... Rdc8 {[%clk
0:00:20.5]} 32. Nd6 {[%clk 0:00:09.4]} 32... Rxd2+ {[%clk 0:00:21.3]} 33. Rxd2
{[%clk 0:00:11.3]} 33... Rc3 {[%clk 0:00:22.4]} 34. Rb2 {[%clk 0:00:11.5]} 34...
Nb4 {[%clk 0:00:22.9]} 35. Ne4 {[%clk 0:00:11]} 35... Re3 {[%clk 0:00:23.3]} 36.
Nc5 {[%clk 0:00:11.8]} 36... f5 {[%clk 0:00:23.3]} 37. a5 {[%clk 0:00:12.4]}
37... Rc3 {[%clk 0:00:23.9]} 38. Na4 {[%clk 0:00:13.2]} 38... Nd3 {[%clk
0:00:23.4]} 39. Rb1 {[%clk 0:00:09.9]} 39... Rc2+ {[%clk 0:00:24.8]} 40. Kg1
{[%clk 0:00:10.8]} 40... Nb4 {[%clk 0:00:24.7]} 41. Nb6 {[%clk 0:00:10]} 41...
e5 {[%clk 0:00:24.8]} 42. Nc4 {[%clk 0:00:11]} 42... f4 {[%clk 0:00:23.1]} 43.
gxf4 {[%clk 0:00:10.1]} 43... exf4 {[%clk 0:00:23.9]} 44. Ra1 {[%clk 0:00:10.6]}
44... Na6 {[%clk 0:00:22.2]} 45. Rb1 {[%clk 0:00:09.4]} 45... g5 {[%clk
0:00:22.2]} 46. Ne5 {[%clk 0:00:07.6]} 46... Nb4 {[%clk 0:00:21.6]} 47. Nc4
{[%clk 0:00:06.7]} 47... h5 {[%clk 0:00:20.7]} 48. Ra1 {[%clk 0:00:07.4]} 48...
Na6 {[%clk 0:00:21.1]} 49. Ne5 {[%clk 0:00:08.2]} 49... Kg7 {[%clk 0:00:20.7]}
50. Nf3 {[%clk 0:00:07.9]} 50... g4 {[%clk 0:00:21.2]} 51. hxg4 {[%clk
0:00:09.8]} 51... hxg4 {[%clk 0:00:22]} 52. Nd4 {[%clk 0:00:09.4]} 52... Rc3
{[%clk 0:00:12.7]} 53. Ne6+ {[%clk 0:00:10]} 53... Kf6 {[%clk 0:00:11.6]} 54.
Nxf4 {[%clk 0:00:11.9]} 54... Rxb3 {[%clk 0:00:12.4]} 55. Kg2 {[%clk 0:00:10.3]}
55... Kg5 {[%clk 0:00:11.7]} 56. Ne6+ {[%clk 0:00:10.4]} 56... Kf6 {[%clk
0:00:12.1]} 57. Nd4 {[%clk 0:00:11]} 57... Rd3 {[%clk 0:00:10.6]} 58. Ne2 {[%clk
0:00:11]} 58... Kg5 {[%clk 0:00:10.4]} 59. Kf2 {[%clk 0:00:11.4]} 59... Rd2
{[%clk 0:00:10.9]} 60. Ke3 {[%clk 0:00:12.1]} 60... Rb2 {[%clk 0:00:12]} 61. Rd1
{[%clk 0:00:12.3]} 61... Nb4 {[%clk 0:00:12.6]} 62. Kf2 {[%clk 0:00:07.8]} 62...
Ra2 {[%clk 0:00:10.2]} 63. Rd4 {[%clk 0:00:07.7]} 63... Nc2 {[%clk 0:00:08.3]}
64. Rd5+ {[%clk 0:00:08.3]} 64... Kf6 {[%clk 0:00:08]} 65. Rd2 {[%clk
0:00:08.7]} 65... Nb4 {[%clk 0:00:08.8]} 66. Rxa2 {[%clk 0:00:09.1]} 66... Nxa2
{[%clk 0:00:10.2]} 67. a6 {[%clk 0:00:11]} 67... Nb4 {[%clk 0:00:08.8]} 68. a7
{[%clk 0:00:11.7]} 68... Nd3+ {[%clk 0:00:10.7]} 69. Kg1 {[%clk 0:00:12.7]}
69... Ne5 {[%clk 0:00:11.6]} 70. a8=Q {[%clk 0:00:14.3]} 70... Nf3+ {[%clk
0:00:13.5]} 71. Kf2 {[%clk 0:00:15.7]} 71... Ne5 {[%clk 0:00:14.2]} 72. Qa6+
{[%clk 0:00:17.2]} 72... Kf5 {[%clk 0:00:15.3]} 73. Ng3+ {[%clk 0:00:19.1]}
73... Kf4 {[%clk 0:00:15.9]} 74. Ne2+ {[%clk 0:00:21]} 74... Kf5 {[%clk
0:00:16.8]} 75. Qa5 {[%clk 0:00:21.9]} 75... g3+ {[%clk 0:00:17.3]} 76. Kxg3
{[%clk 0:00:22.8]} 76... Ke6 {[%clk 0:00:17.9]} 77. Nf4+ {[%clk 0:00:23.6]} 1

[Event "Open Nuevo Centro. Jornada 2"]
[Site "Chess.com"]
[Date "2020.06.26"]
[Round "8"]
[White "Gómez Alonso, Óscar"]
[Black "Crevillen Abad, Clemente"]
[Result "1-0"]
[WhiteElo "1844"]
[BlackElo "1743"]
[TimeControl "180+2"]
[EndTime "12:02:07 PDT"]
[Termination "Victoria de osgo78 por tiempo"]

1. d4 {[%clk 0:03:00]} 1... Nf6 {[%clk 0:03:00.4]} 2. c4 {[%clk 0:03:00.8]} 2...
g6 {[%clk 0:02:59.4]} 3. Nc3 {[%clk 0:03:01.6]} 3... d5 {[%clk 0:03:00.1]} 4.
Nf3 {[%clk 0:02:58.8]} 4... Bg7 {[%clk 0:02:59.9]} 5. e3 {[%clk 0:02:59.3]} 5...
O-O {[%clk 0:02:59.7]} 6. Be2 {[%clk 0:02:58.6]} 6... c6 {[%clk 0:02:43.5]} 7.
O-O {[%clk 0:02:58.7]} 7... Nbd7 {[%clk 0:02:39.8]} 8. cxd5 {[%clk 0:02:59]}
8... cxd5 {[%clk 0:02:33.7]} 9. b3 {[%clk 0:02:59]} 9... a6 {[%clk 0:02:23.9]}
10. Bb2 {[%clk 0:02:59.8]} 10... b5 {[%clk 0:02:24.1]} 11. Rc1 {[%clk
0:03:00.2]} 11... Bb7 {[%clk 0:02:24.5]} 12. h3 {[%clk 0:02:47.3]} 12... Rc8
{[%clk 0:02:20]} 13. Qd2 {[%clk 0:02:45.9]} 13... Re8 {[%clk 0:01:59.7]} 14.
Rfd1 {[%clk 0:02:46.2]} 14... e6 {[%clk 0:01:51.8]} 15. Bf1 {[%clk 0:02:44.8]}
15... Nb6 {[%clk 0:01:44.3]} 16. Ne5 {[%clk 0:02:42.4]} 16... Nfd7 {[%clk
0:01:42.1]} 17. Nxd7 {[%clk 0:02:42.7]} 17... Qxd7 {[%clk 0:01:40.1]} 18. Ne2
{[%clk 0:02:41.1]} 18... Rxc1 {[%clk 0:01:36.2]} 19. Rxc1 {[%clk 0:02:41.9]}
19... Rc8 {[%clk 0:01:36.9]} 20. Nf4 {[%clk 0:02:31.9]} 20... Kf8 {[%clk
0:01:25.8]} 21. Nd3 {[%clk 0:02:29.7]} 21... Rxc1 {[%clk 0:01:21.4]} 22. Qxc1
{[%clk 0:02:28.9]} 22... Qc8 {[%clk 0:01:18.3]} 23. Ba3+ {[%clk 0:02:28.1]}
23... Kg8 {[%clk 0:01:08.9]} 24. Nc5 {[%clk 0:02:25]} 24... Bf8 {[%clk
0:01:07.5]} 25. Qd2 {[%clk 0:02:24.9]} 25... Nd7 {[%clk 0:01:05.5]} 26. b4
{[%clk 0:02:19.4]} 26... Nxc5 {[%clk 0:01:04.7]} 27. bxc5 {[%clk 0:02:17.8]}
27... f6 {[%clk 0:01:01.6]} 28. Qa5 {[%clk 0:02:14.2]} 28... Be7 {[%clk
0:00:57.1]} 29. Qb6 {[%clk 0:01:59.6]} 29... Kf7 {[%clk 0:00:56.5]} 30. Bb4
{[%clk 0:01:55.3]} 30... Qc6 {[%clk 0:00:56.3]} 31. Qxc6 {[%clk 0:01:46.2]}
31... Bxc6 {[%clk 0:00:56.5]} 32. Ba5 {[%clk 0:01:45.9]} 32... e5 {[%clk
0:00:55.7]} 33. Bd3 {[%clk 0:01:43.2]} 33... Ke6 {[%clk 0:00:53.1]} 34. Kf1
{[%clk 0:01:41.1]} 34... f5 {[%clk 0:00:52.9]} 35. Ke2 {[%clk 0:01:40.5]} 35...
e4 {[%clk 0:00:52.1]} 36. Bc2 {[%clk 0:01:37.8]} 36... g5 {[%clk 0:00:48.1]} 37.
Bc7 {[%clk 0:01:35.2]} 37... Kd7 {[%clk 0:00:46.1]} 38. Ba5 {[%clk 0:01:31.3]}
38... Ke6 {[%clk 0:00:31.6]} 39. f3 {[%clk 0:01:31.7]} 39... h5 {[%clk
0:00:20.9]} 40. fxe4 {[%clk 0:01:30.8]} 40... fxe4 {[%clk 0:00:20.2]} 41. Bb3
{[%clk 0:01:27.2]} 41... Kf5 {[%clk 0:00:20.7]} 42. Bc7 {[%clk 0:01:25.4]} 42...
g4 {[%clk 0:00:20.8]} 43. Kf2 {[%clk 0:01:16.3]} 43... Bh4+ {[%clk 0:00:21.3]}
44. Bg3 {[%clk 0:01:15.7]} 44... Bg5 {[%clk 0:00:20]} 45. hxg4+ {[%clk
0:01:13.1]} 45... Kxg4 {[%clk 0:00:20.3]} 46. Bd6 {[%clk 0:01:08.8]} 46... h4
{[%clk 0:00:20.7]} 47. a3 {[%clk 0:01:06.4]} 47... h3 {[%clk 0:00:19.3]} 48.
Bd1+ {[%clk 0:01:05.8]} 48... Kf5 {[%clk 0:00:16.3]} 49. gxh3 {[%clk 0:01:05.7]}
49... Bh4+ {[%clk 0:00:17.3]} 50. Kg2 {[%clk 0:01:05.1]} 50... a5 {[%clk
0:00:17.6]} 51. Bg4+ {[%clk 0:01:04.1]} 51... Kf6 {[%clk 0:00:17.7]} 52. Kf1
{[%clk 0:00:56.8]} 52... Bg5 {[%clk 0:00:14.1]} 53. Be5+ {[%clk 0:00:54.9]}
53... Kg6 {[%clk 0:00:13.5]} 54. Kf2 {[%clk 0:00:49.8]} 54... Bh4+ {[%clk
0:00:14.2]} 55. Ke2 {[%clk 0:00:48]} 55... Be7 {[%clk 0:00:11]} 56. Bf4 {[%clk
0:00:48.2]} 56... Bd8 {[%clk 0:00:07.9]} 57. Kd2 {[%clk 0:00:49]} 57... Be7
{[%clk 0:00:07.4]} 58. Bc7 {[%clk 0:00:44.6]} 58... a4 {[%clk 0:00:06.7]} 59.
Bf4 {[%clk 0:00:40.8]} 59... Bd8 {[%clk 0:00:06.9]} 60. Kc3 {[%clk 0:00:41.2]}
60... Ba5+ {[%clk 0:00:07.2]} 61. Kc2 {[%clk 0:00:40.8]} 61... Bd8 {[%clk
0:00:07.5]} 62. Bg3 {[%clk 0:00:41.2]} 62... Ba5 {[%clk 0:00:07.7]} 63. Bf2
{[%clk 0:00:33.8]} 63... Kg5 {[%clk 0:00:08.5]} 64. Be2 {[%clk 0:00:28.8]} 64...
Kg6 {[%clk 0:00:08.2]} 65. h4 {[%clk 0:00:29.1]} 65... Kh6 {[%clk 0:00:07]} 66.
Bg3 {[%clk 0:00:28.7]} 66... Bd8 {[%clk 0:00:05.6]} 67. Bf4+ {[%clk 0:00:29.3]}
67... Kg6 {[%clk 0:00:05.2]} 68. h5+ {[%clk 0:00:29.9]} 68... Kg7 {[%clk
0:00:05.9]} 69. h6+ {[%clk 0:00:30]} 69... Kh7 {[%clk 0:00:06.1]} 70. Bg4 {[%clk
0:00:24.3]} 70... Bf6 {[%clk 0:00:05.8]} 71. Bf5+ {[%clk 0:00:24.8]} 71... Kg8
{[%clk 0:00:05]} 72. h7+ {[%clk 0:00:25.1]} 72... Kg7 {[%clk 0:00:04.3]} 73. Kc3
{[%clk 0:00:12]} 73... Kf7 {[%clk 0:00:03.1]} 74. Kb4 {[%clk 0:00:12.2]} 1